[Event "Live Chess"]
[Site "Chess.com"]
[Date "2023.05.21"]
[Round "-"]
[White "LanceMaster23"]
[Black "MartynColebrook"]
[Result "1-0"]
[WhiteElo "1975"]
[BlackElo "1223"]
[TimeControl "300"]
[EndTime "8:06:51 PDT"]
[Termination "LanceMaster23 won by resignation"]

1. Nf3 {[%clk 0:04:58.1]} 1... Nf6 {[%clk 0:04:58.2]} 2. d4 {[%clk 0:04:57.1]}
2... g6 {[%clk 0:04:56.5]} 3. Bf4 {[%clk 0:04:56.6]} 3... Bg7 {[%clk 0:04:55.4]}
4. e3 {[%clk 0:04:56.2]} 4... d6 {[%clk 0:04:54]} 5. h3 {[%clk 0:04:55.7]} 5...
Nc6 {[%clk 0:04:48.6]} 6. Be2 {[%clk 0:04:55.1]} 6... O-O {[%clk 0:04:45.1]} 7.
c3 {[%clk 0:04:52.7]} 7... Nd5 {[%clk 0:04:34.2]} 8. Bg3 {[%clk 0:04:49.8]} 8...
f5 {[%clk 0:04:29.8]} 9. Bc4 {[%clk 0:04:44.1]} 9... Be6 {[%clk 0:04:26.4]} 10.
Ng5 {[%clk 0:04:42.6]} 10... Qd7 {[%clk 0:04:08.3]} 11. Nxe6 {[%clk 0:04:39.3]}
11... Qxe6 {[%clk 0:04:06.5]} 12. Qb3 {[%clk 0:04:38.7]} 12... Na5 {[%clk
0:03:27.2]} 13. Bxd5 {[%clk 0:04:37.1]} 13... Nxb3 {[%clk 0:03:25.7]} 14. Bxe6+
{[%clk 0:04:36]} 14... Kh8 {[%clk 0:03:23.9]} 15. axb3 {[%clk 0:04:35.2]} 15...
Rf6 {[%clk 0:03:20]} 16. Bd5 {[%clk 0:04:31.9]} 16... e6 {[%clk 0:03:18.3]} 17.
Bxb7 {[%clk 0:04:30.2]} 17... Rb8 {[%clk 0:03:16.1]} 18. Rxa7 {[%clk 0:04:29.9]}
18... Rff8 {[%clk 0:03:03.4]} 1-0

[Event "Live Chess"]
[Site "Chess.com"]
[Date "2023.05.21"]
[Round "-"]
[White "domrobson"]
[Black "Doge_Dandolo"]
[Result "1-0"]
[WhiteElo "1778"]
[BlackElo "1856"]
[TimeControl "300"]
[EndTime "8:06:57 PDT"]
[Termination "domrobson won by resignation"]

1. d4 {[%clk 0:04:58.1]} 1... d5 {[%clk 0:04:57.2]} 2. c4 {[%clk 0:04:51.5]}
2... c6 {[%clk 0:04:55.2]} 3. Nf3 {[%clk 0:04:46.7]} 3... Nf6 {[%clk 0:04:53.8]}
4. Nc3 {[%clk 0:04:45.4]} 4... a6 {[%clk 0:04:52.2]} 5. e3 {[%clk 0:04:41.3]}
5... Bf5 {[%clk 0:04:50.5]} 6. Qb3 {[%clk 0:04:38.9]} 6... Ra7 {[%clk
0:04:45.8]} 7. cxd5 {[%clk 0:04:36.6]} 7... cxd5 {[%clk 0:04:44.4]} 8. Ne5
{[%clk 0:04:33.1]} 8... Nbd7 {[%clk 0:04:38.4]} 9. Nxd5 {[%clk 0:04:29.7]} 9...
Nxe5 {[%clk 0:04:37.3]} 10. Nxf6+ {[%clk 0:04:28.1]} 10... exf6 {[%clk
0:04:34.2]} 11. dxe5 {[%clk 0:04:27.3]} 11... fxe5 {[%clk 0:04:28.7]} 12. Bc4
{[%clk 0:04:24.9]} 12... b5 {[%clk 0:04:23.5]} 13. Be2 {[%clk 0:04:16.9]} 13...
Be7 {[%clk 0:04:15.9]} 14. O-O {[%clk 0:04:15.8]} 14... O-O {[%clk 0:04:13.7]}
15. Rd1 {[%clk 0:04:10.4]} 15... Rd7 {[%clk 0:04:11.4]} 16. Rxd7 {[%clk
0:04:03.8]} 16... Qxd7 {[%clk 0:04:09.2]} 17. Qd1 {[%clk 0:04:02.6]} 17... Rd8
{[%clk 0:04:07.7]} 18. Qxd7 {[%clk 0:03:59.9]} 18... Rxd7 {[%clk 0:04:06.4]} 19.
Kf1 {[%clk 0:03:59.4]} 19... Bd3 {[%clk 0:04:02.4]} 20. Ke1 {[%clk 0:03:55.3]}
20... Bb4+ {[%clk 0:03:58.3]} 21. Bd2 {[%clk 0:03:52.8]} 21... Bxd2+ {[%clk
0:03:48.6]} 22. Kxd2 {[%clk 0:03:50.8]} 22... Bxe2+ {[%clk 0:03:45.7]} 23. Kxe2
{[%clk 0:03:49.5]} 23... f6 {[%clk 0:03:43.9]} 24. Rc1 {[%clk 0:03:48]} 24...
Kf7 {[%clk 0:03:42.6]} 25. Rc6 {[%clk 0:03:46.1]} 25... Ra7 {[%clk 0:03:39.4]}
26. b4 {[%clk 0:03:44.2]} 26... a5 {[%clk 0:03:36.7]} 27. bxa5 {[%clk
0:03:38.9]} 27... Rxa5 {[%clk 0:03:35]} 28. Rc2 {[%clk 0:03:38.2]} 28... e4
{[%clk 0:03:32.8]} 29. Rb2 {[%clk 0:03:37.3]} 29... Ke6 {[%clk 0:03:29.9]} 30.
Kd2 {[%clk 0:03:35.9]} 30... Kd5 {[%clk 0:03:28.6]} 31. Kc3 {[%clk 0:03:34.9]}
31... Kc5 {[%clk 0:03:26.1]} 32. Kb3 {[%clk 0:03:30]} 32... b4 {[%clk
0:03:20.6]} 33. Rc2+ {[%clk 0:03:25.5]} 33... Kb5 {[%clk 0:03:17.8]} 34. Rd2
{[%clk 0:03:22.5]} 34... Ra3+ {[%clk 0:03:14.2]} 35. Kb2 {[%clk 0:03:21.2]}
35... Rd3 {[%clk 0:03:09]} 36. Rc2 {[%clk 0:03:17.5]} 36... h5 {[%clk
0:03:03.9]} 37. Kc1 {[%clk 0:03:06.7]} 37... h4 {[%clk 0:02:59.7]} 38. g3 {[%clk
0:03:01.3]} 38... hxg3 {[%clk 0:02:57.4]} 39. hxg3 {[%clk 0:02:59.5]} 39... Ka4
{[%clk 0:02:55.5]} 40. Rc7 {[%clk 0:02:55.3]} 40... Rc3+ {[%clk 0:02:49.9]} 41.
Rxc3 {[%clk 0:02:52.4]} 41... bxc3 {[%clk 0:02:49.1]} 42. Kc2 {[%clk 0:02:51.5]}
42... Kb4 {[%clk 0:02:46]} 43. a4 {[%clk 0:02:43.6]} 43... Kxa4 {[%clk 0:02:45]}
44. Kxc3 {[%clk 0:02:42.6]} 44... Kb5 {[%clk 0:02:43.9]} 45. Kd4 {[%clk
0:02:42.1]} 45... Kc6 {[%clk 0:02:42.6]} 46. Kxe4 {[%clk 0:02:41.2]} 46... Kd6
{[%clk 0:02:41.9]} 47. Kf5 {[%clk 0:02:40.6]} 47... Ke7 {[%clk 0:02:41.4]} 48.
Kg6 {[%clk 0:02:39.8]} 48... Kf8 {[%clk 0:02:39.8]} 49. g4 {[%clk 0:02:39.3]}
49... Kg8 {[%clk 0:02:38.9]} 50. f4 {[%clk 0:02:38.6]} 50... Kh8 {[%clk
0:02:36.5]} 51. e4 {[%clk 0:02:38.2]} 51... Kg8 {[%clk 0:02:35.4]} 52. e5 {[%clk
0:02:37.4]} 52... fxe5 {[%clk 0:02:34.6]} 53. fxe5 {[%clk 0:02:36.6]} 53... Kf8
{[%clk 0:02:33.5]} 54. e6 {[%clk 0:02:35.2]} 54... Ke7 {[%clk 0:02:32]} 55. Kxg7
{[%clk 0:02:34.1]} 55... Kxe6 {[%clk 0:02:31.5]} 56. Kh6 {[%clk 0:02:31.4]}
56... Kf7 {[%clk 0:02:30.5]} 57. Kh7 {[%clk 0:02:29.6]} 57... Kf6 {[%clk
0:02:28.4]} 58. Kh6 {[%clk 0:02:25.4]} 58... Kf7 {[%clk 0:02:27.5]} 59. g5
{[%clk 0:02:23.2]} 59... Kg8 {[%clk 0:02:26.4]} 60. Kg6 {[%clk 0:02:22.4]} 60...
Kh8 {[%clk 0:02:25.3]} 61. Kf7 {[%clk 0:02:19.1]} 1-0

[Event "Live Chess"]
[Site "Chess.com"]
[Date "2023.05.21"]
[Round "-"]
[White "educatedlad"]
[Black "Rusty_Bridges"]
[Result "0-1"]
[WhiteElo "1614"]
[BlackElo "1524"]
[TimeControl "300"]
[EndTime "8:07:13 PDT"]
[Termination "Rusty_Bridges won by resignation"]

1. e4 {[%clk 0:04:59.5]} 1... d6 {[%clk 0:04:58]} 2. d4 {[%clk 0:04:57.8]} 2...
Nf6 {[%clk 0:04:57.1]} 3. Nc3 {[%clk 0:04:57.3]} 3... Nbd7 {[%clk 0:04:55.5]} 4.
f4 {[%clk 0:04:56.3]} 4... e5 {[%clk 0:04:54.6]} 5. Nf3 {[%clk 0:04:54.1]} 5...
exd4 {[%clk 0:04:52.2]} 6. Qxd4 {[%clk 0:04:54]} 6... Be7 {[%clk 0:04:50.8]} 7.
e5 {[%clk 0:04:47.2]} 7... dxe5 {[%clk 0:04:49.6]} 8. fxe5 {[%clk 0:04:46.5]}
8... Ng8 {[%clk 0:04:47.8]} 9. Bc4 {[%clk 0:04:44.5]} 9... Nb6 {[%clk 0:04:39]}
10. Bxf7+ {[%clk 0:04:24.9]} 10... Kxf7 {[%clk 0:04:36.1]} 11. Qxd8 {[%clk
0:04:18.8]} 11... Bxd8 {[%clk 0:04:34.3]} 12. O-O {[%clk 0:04:18.1]} 12... Ke8
{[%clk 0:04:22.8]} 13. Bg5 {[%clk 0:04:15]} 13... Bxg5 {[%clk 0:04:18.6]} 14.
Nxg5 {[%clk 0:04:12.9]} 14... Ne7 {[%clk 0:04:15.2]} 15. e6 {[%clk 0:04:09.1]}
0-1

[Event "Live Chess"]
[Site "Chess.com"]
[Date "2023.05.21"]
[Round "-"]
[White "zdanevych"]
[Black "PantherCal"]
[Result "0-1"]
[WhiteElo "1461"]
[BlackElo "1858"]
[TimeControl "300"]
[EndTime "8:07:26 PDT"]
[Termination "PantherCal won by checkmate"]

1. d4 {[%clk 0:04:59.4]} 1... d5 {[%clk 0:04:58.3]} 2. c4 {[%clk 0:04:58.8]}
2... c6 {[%clk 0:04:58.2]} 3. Nc3 {[%clk 0:04:57.8]} 3... Nf6 {[%clk 0:04:57.7]}
4. Nf3 {[%clk 0:04:57.3]} 4... Bf5 {[%clk 0:04:56.2]} 5. h3 {[%clk 0:04:56.6]}
5... e6 {[%clk 0:04:55.4]} 6. Bg5 {[%clk 0:04:55.9]} 6... Nbd7 {[%clk
0:04:53.5]} 7. e3 {[%clk 0:04:55.1]} 7... Be7 {[%clk 0:04:51.7]} 8. Bd3 {[%clk
0:04:54.5]} 8... O-O {[%clk 0:04:49.7]} 9. Bxf5 {[%clk 0:04:53]} 9... exf5
{[%clk 0:04:49.6]} 10. O-O {[%clk 0:04:50.4]} 10... Ne4 {[%clk 0:04:48.2]} 11.
Bf4 {[%clk 0:04:48.8]} 11... Ndf6 {[%clk 0:04:44.5]} 12. cxd5 {[%clk 0:04:47.5]}
12... Nxd5 {[%clk 0:04:42.6]} 13. Nxd5 {[%clk 0:04:46.6]} 13... cxd5 {[%clk
0:04:42.5]} 14. Rc1 {[%clk 0:04:41.1]} 14... Rc8 {[%clk 0:04:38.4]} 15. Qd3
{[%clk 0:04:36.2]} 15... Qd7 {[%clk 0:04:31.7]} 16. Ne5 {[%clk 0:04:34.6]} 16...
Qe6 {[%clk 0:04:28.8]} 17. f3 {[%clk 0:04:28.3]} 17... Nd6 {[%clk 0:04:19.2]}
18. g4 {[%clk 0:04:13.4]} 18... fxg4 {[%clk 0:04:12.5]} 19. Nxg4 {[%clk
0:04:11]} 19... Nc4 {[%clk 0:03:58.2]} 20. b3 {[%clk 0:04:03.4]} 20... Nd6
{[%clk 0:03:33.9]} 21. Kh2 {[%clk 0:03:41.2]} 21... Rxc1 {[%clk 0:03:26.7]} 22.
Rxc1 {[%clk 0:03:39.5]} 22... Rc8 {[%clk 0:03:26.6]} 23. Rg1 {[%clk 0:03:36.9]}
23... Kh8 {[%clk 0:03:03.5]} 24. Qe2 {[%clk 0:03:23.5]} 24... Qf5 {[%clk
0:02:57.9]} 25. Qg2 {[%clk 0:03:20.1]} 25... Rc2 {[%clk 0:02:51.4]} 26. Nf2
{[%clk 0:03:14.5]} 26... g6 {[%clk 0:02:44.2]} 27. Be5+ {[%clk 0:03:08.2]} 27...
Kg8 {[%clk 0:02:38.5]} 28. Kh1 {[%clk 0:03:01.7]} 28... f6 {[%clk 0:02:23.4]}
29. Bh2 {[%clk 0:02:58]} 29... Nf7 {[%clk 0:02:21.4]} 30. Qg4 {[%clk 0:02:52.7]}
30... Qxg4 {[%clk 0:01:55]} 31. Nxg4 {[%clk 0:02:50.1]} 31... Kg7 {[%clk
0:01:52.7]} 32. e4 {[%clk 0:02:37.9]} 32... dxe4 {[%clk 0:01:49.5]} 33. fxe4
{[%clk 0:02:37.8]} 33... Ng5 {[%clk 0:01:48.5]} 34. e5 {[%clk 0:02:26.5]} 34...
Nxh3 {[%clk 0:01:35.8]} 35. Rf1 {[%clk 0:02:22.3]} 35... f5 {[%clk 0:01:26.6]}
36. Ne3 {[%clk 0:02:13]} 36... Re2 {[%clk 0:01:24.6]} 37. Nd5 {[%clk 0:02:08.8]}
37... Bg5 {[%clk 0:01:16.6]} 38. Nf6 {[%clk 0:02:00.3]} 38... Nf2+ {[%clk
0:00:59.8]} 39. Kg1 {[%clk 0:01:59.2]} 39... Be3 {[%clk 0:00:46.6]} 40. Bg3
{[%clk 0:01:50.3]} 40... Ne4+ {[%clk 0:00:40.2]} 41. Kh1 {[%clk 0:01:49.6]}
41... Nxg3# {[%clk 0:00:39.2]} 0-1

[Event "Live Chess"]
[Site "Chess.com"]
[Date "2023.05.21"]
[Round "-"]
[White "MarkCheck"]
[Black "Ninifu"]
[Result "0-1"]
[WhiteElo "1560"]
[BlackElo "2022"]
[TimeControl "300"]
[EndTime "8:07:30 PDT"]
[Termination "Ninifu won on time"]

1. c4 {[%clk 0:04:57.6]} 1... Nf6 {[%clk 0:04:58.3]} 2. g3 {[%clk 0:04:55.1]}
2... g6 {[%clk 0:04:57.2]} 3. Bg2 {[%clk 0:04:54.7]} 3... Bg7 {[%clk 0:04:56.7]}
4. Nc3 {[%clk 0:04:54.4]} 4... O-O {[%clk 0:04:56.2]} 5. Rb1 {[%clk 0:04:52.5]}
5... d6 {[%clk 0:04:55.6]} 6. b4 {[%clk 0:04:48.5]} 6... a5 {[%clk 0:04:53.2]}
7. b5 {[%clk 0:04:42.1]} 7... Nbd7 {[%clk 0:04:51.4]} 8. d4 {[%clk 0:04:39.1]}
8... e5 {[%clk 0:04:49.9]} 9. e3 {[%clk 0:03:46.2]} 9... exd4 {[%clk 0:04:37]}
10. exd4 {[%clk 0:03:45.3]} 10... Re8+ {[%clk 0:04:35.4]} 11. Nge2 {[%clk
0:03:44.6]} 11... Nf8 {[%clk 0:04:25.9]} 12. O-O {[%clk 0:03:25.9]} 12... Rb8
{[%clk 0:04:24.9]} 13. Bg5 {[%clk 0:03:21.7]} 13... Bf5 {[%clk 0:04:23.7]} 14.
Rb2 {[%clk 0:03:02]} 14... h6 {[%clk 0:04:18.4]} 15. Bxf6 {[%clk 0:02:55]} 15...
Qxf6 {[%clk 0:04:17]} 16. Nd5 {[%clk 0:02:51.8]} 16... Qd8 {[%clk 0:04:11.8]}
17. b6 {[%clk 0:02:34.3]} 17... c6 {[%clk 0:03:59.1]} 18. Ne3 {[%clk 0:02:10.2]}
18... Be4 {[%clk 0:03:48.7]} 19. Rb3 {[%clk 0:01:32.4]} 19... Bxg2 {[%clk
0:03:42.4]} 20. Kxg2 {[%clk 0:01:31.4]} 20... Ne6 {[%clk 0:03:27.6]} 21. Qd2
{[%clk 0:01:12.6]} 21... d5 {[%clk 0:03:14.3]} 22. cxd5 {[%clk 0:01:05.4]} 22...
cxd5 {[%clk 0:03:12.5]} 23. Qxa5 {[%clk 0:01:02.3]} 23... Nxd4 {[%clk
0:03:01.4]} 24. Nxd4 {[%clk 0:00:58.6]} 24... Bxd4 {[%clk 0:02:59.1]} 25. Qxd5
{[%clk 0:00:35]} 25... Bxb6 {[%clk 0:02:40.2]} 26. Qxd8 {[%clk 0:00:29.6]} 26...
Bxd8 {[%clk 0:02:39.3]} 27. Rfb1 {[%clk 0:00:26.2]} 27... b6 {[%clk 0:02:26.7]}
28. a4 {[%clk 0:00:22.1]} 28... Ra8 {[%clk 0:02:19.4]} 29. Nd5 {[%clk
0:00:16.6]} 29... Rxa4 {[%clk 0:02:15.3]} 30. Nxb6 {[%clk 0:00:14.6]} 30... Ra2
{[%clk 0:02:12]} 31. R3b2 {[%clk 0:00:12.5]} 31... Re2 {[%clk 0:01:57.8]} 32.
Rxa2 {[%clk 0:00:09.5]} 32... Rxa2 {[%clk 0:01:56.9]} 33. Nd5 {[%clk 0:00:08]}
33... Rd2 {[%clk 0:01:53.5]} 34. Ne3 {[%clk 0:00:05.9]} 34... Bg5 {[%clk
0:01:49.6]} 35. Rb3 {[%clk 0:00:05.4]} 35... Kg7 {[%clk 0:01:47.7]} 36. Kf3
{[%clk 0:00:04.8]} 36... h5 {[%clk 0:01:45.6]} 37. h4 {[%clk 0:00:04.1]} 37...
Bh6 {[%clk 0:01:41]} 38. Rc3 {[%clk 0:00:02.2]} 38... Ra2 {[%clk 0:01:38.1]} 39.
Rc4 {[%clk 0:00:01]} 39... Ra3 {[%clk 0:01:36.7]} 0-1

[Event "Live Chess"]
[Site "Chess.com"]
[Date "2023.05.21"]
[Round "-"]
[White "lord_cll"]
[Black "mattihelenius2"]
[Result "1-0"]
[WhiteElo "1206"]
[BlackElo "495"]
[TimeControl "300"]
[EndTime "8:07:30 PDT"]
[Termination "lord_cll won by resignation"]

1. e4 {[%clk 0:04:57]} 1... e6 {[%clk 0:04:59.9]} 2. d4 {[%clk 0:04:52.5]} 2...
d5 {[%clk 0:04:59.5]} 3. e5 {[%clk 0:04:50.7]} 3... Nc6 {[%clk 0:04:57.5]} 4. c3
{[%clk 0:04:49.5]} 4... Be7 {[%clk 0:04:55]} 5. Nf3 {[%clk 0:04:48.2]} 5... f6
{[%clk 0:04:54.2]} 6. Bf4 {[%clk 0:04:45]} 6... g5 {[%clk 0:04:46.5]} 7. Bg3
{[%clk 0:04:29.9]} 7... f5 {[%clk 0:04:22.8]} 8. h3 {[%clk 0:04:23.5]} 8... f4
{[%clk 0:04:20.1]} 9. Bh2 {[%clk 0:04:18.4]} 9... Na5 {[%clk 0:03:54.2]} 10.
Nbd2 {[%clk 0:04:09.7]} 10... h6 {[%clk 0:03:35.6]} 11. b4 {[%clk 0:04:07.7]}
11... Nc4 {[%clk 0:03:32.4]} 12. Nxc4 {[%clk 0:04:06.1]} 12... dxc4 {[%clk
0:03:31.4]} 13. Bxc4 {[%clk 0:04:04.8]} 13... Qd7 {[%clk 0:03:25.9]} 14. d5
{[%clk 0:03:43]} 14... b6 {[%clk 0:02:57.3]} 15. a4 {[%clk 0:03:21.4]} 15... Bb7
{[%clk 0:02:46.2]} 16. Qb3 {[%clk 0:03:18.7]} 16... c5 {[%clk 0:02:34.9]} 17.
Bb5 {[%clk 0:03:17]} 17... Bxd5 {[%clk 0:02:24.3]} 18. Bxd7+ {[%clk 0:03:15.6]}
18... Kxd7 {[%clk 0:02:21.6]} 19. c4 {[%clk 0:03:11.5]} 19... Bxf3 {[%clk
0:02:14.7]} 20. gxf3 {[%clk 0:03:07.3]} 20... Rc8 {[%clk 0:02:09.7]} 21. b5
{[%clk 0:03:05.6]} 21... h5 {[%clk 0:01:57.8]} 22. a5 {[%clk 0:03:00.6]} 22...
Ra8 {[%clk 0:01:48.6]} 23. axb6 {[%clk 0:02:49.7]} 23... Bd8 {[%clk 0:01:37.8]}
24. Rxa7+ {[%clk 0:02:43]} 24... Kc8 {[%clk 0:01:29.6]} 1-0

[Event "Live Chess"]
[Site "Chess.com"]
[Date "2023.05.21"]
[Round "-"]
[White "Tema1107"]
[Black "stevochess11"]
[Result "1-0"]
[WhiteElo "1937"]
[BlackElo "1662"]
[TimeControl "300"]
[EndTime "8:07:32 PDT"]
[Termination "Tema1107 won by resignation"]

1. d4 {[%clk 0:04:55.1]} 1... Nf6 {[%clk 0:04:54.9]} 2. Nf3 {[%clk 0:04:54.5]}
2... g6 {[%clk 0:04:47.9]} 3. g3 {[%clk 0:04:52.3]} 3... Bg7 {[%clk 0:04:47]} 4.
Bg2 {[%clk 0:04:52.2]} 4... O-O {[%clk 0:04:46.2]} 5. c4 {[%clk 0:04:52]} 5...
d6 {[%clk 0:04:45.3]} 6. O-O {[%clk 0:04:51.4]} 6... c5 {[%clk 0:04:44.3]} 7.
Nc3 {[%clk 0:04:50.1]} 7... Nc6 {[%clk 0:04:43]} 8. d5 {[%clk 0:04:33.8]} 8...
Na5 {[%clk 0:04:36.8]} 9. Qd3 {[%clk 0:04:29.5]} 9... Bf5 {[%clk 0:04:30.8]} 10.
e4 {[%clk 0:03:51.2]} 10... Bg4 {[%clk 0:04:22.5]} 11. Nd2 {[%clk 0:03:46.3]}
11... Nd7 {[%clk 0:04:17.1]} 12. f4 {[%clk 0:03:42.6]} 12... Bd4+ {[%clk
0:04:10.2]} 13. Kh1 {[%clk 0:03:41.1]} 13... e5 {[%clk 0:04:02.1]} 14. h3 {[%clk
0:03:22.1]} 14... Bh5 {[%clk 0:03:45.1]} 15. g4 {[%clk 0:03:17.2]} 15... Bxg4
{[%clk 0:03:41.7]} 16. hxg4 {[%clk 0:03:16]} 16... Qh4+ {[%clk 0:03:40.5]} 17.
Qh3 {[%clk 0:03:15.2]} 17... Qxh3+ {[%clk 0:03:31.3]} 18. Bxh3 {[%clk
0:03:15.1]} 18... Nb6 {[%clk 0:03:25.3]} 19. Nf3 {[%clk 0:03:08.3]} 19... Nbxc4
{[%clk 0:03:19.5]} 20. Nxd4 {[%clk 0:03:01.1]} 20... cxd4 {[%clk 0:03:16.7]} 21.
Nb5 {[%clk 0:03:01]} 21... a6 {[%clk 0:03:09.9]} 22. Na3 {[%clk 0:02:45]} 22...
Nxa3 {[%clk 0:03:07.2]} 23. bxa3 {[%clk 0:02:44.9]} 23... Rac8 {[%clk
0:03:05.3]} 24. Bd2 {[%clk 0:02:42.3]} 24... Nc4 {[%clk 0:02:59.5]} 25. Bb4
{[%clk 0:02:39.6]} 25... a5 {[%clk 0:02:56.8]} 26. Be1 {[%clk 0:02:38.2]} 26...
Nxa3 {[%clk 0:02:54.3]} 27. Bxa5 {[%clk 0:02:36]} 27... Nc2 {[%clk 0:02:41.4]}
28. Rab1 {[%clk 0:02:30.7]} 28... Ne3 {[%clk 0:02:36.4]} 29. Rfc1 {[%clk
0:02:27.9]} 29... Ra8 {[%clk 0:02:32.5]} 30. Bc7 {[%clk 0:02:24.1]} 30... Rxa2
{[%clk 0:02:28.5]} 31. Bxd6 {[%clk 0:02:22.6]} 31... exf4 {[%clk 0:02:12.9]} 32.
Bxf8 {[%clk 0:02:17.7]} 32... Kxf8 {[%clk 0:02:10.1]} 33. d6 {[%clk 0:02:12.1]}
33... d3 {[%clk 0:02:02.6]} 34. Rc8+ {[%clk 0:02:08.8]} 34... Kg7 {[%clk
0:02:00.9]} 35. d7 {[%clk 0:02:08.7]} 35... Rf2 {[%clk 0:01:45.1]} 36. d8=Q
{[%clk 0:02:03.1]} 36... Rf3 {[%clk 0:01:45]} 1-0

[Event "Live Chess"]
[Site "Chess.com"]
[Date "2023.05.21"]
[Round "-"]
[White "Man-Del-Brot"]
[Black "ramses-IIG"]
[Result "1-0"]
[WhiteElo "1081"]
[BlackElo "873"]
[TimeControl "300"]
[EndTime "8:07:39 PDT"]
[Termination "Man-Del-Brot won by checkmate"]

1. d4 {[%clk 0:04:56.8]} 1... d5 {[%clk 0:04:59.9]} 2. Nf3 {[%clk 0:04:55.1]}
2... Nf6 {[%clk 0:04:56.9]} 3. Bf4 {[%clk 0:04:53.6]} 3... Nc6 {[%clk
0:04:54.7]} 4. e3 {[%clk 0:04:52.4]} 4... e6 {[%clk 0:04:50.8]} 5. Nbd2 {[%clk
0:04:48.4]} 5... Bb4 {[%clk 0:04:48.7]} 6. c3 {[%clk 0:04:47.4]} 6... Ba5 {[%clk
0:04:47.4]} 7. b4 {[%clk 0:04:46.1]} 7... Bb6 {[%clk 0:04:46.2]} 8. a4 {[%clk
0:04:45.1]} 8... a6 {[%clk 0:04:45.4]} 9. Be2 {[%clk 0:04:35.9]} 9... O-O {[%clk
0:04:40.3]} 10. O-O {[%clk 0:04:34.5]} 10... Ng4 {[%clk 0:04:37.4]} 11. b5
{[%clk 0:04:28.3]} 11... Ne7 {[%clk 0:04:09.3]} 12. h3 {[%clk 0:03:45.9]} 12...
Nf6 {[%clk 0:04:02.2]} 13. Qc2 {[%clk 0:03:20]} 13... Qd7 {[%clk 0:03:39]} 14.
Ne5 {[%clk 0:03:14.7]} 14... Qd8 {[%clk 0:03:25.1]} 15. c4 {[%clk 0:03:00]}
15... Nd7 {[%clk 0:03:09.9]} 16. Nxd7 {[%clk 0:02:32.1]} 16... Qxd7 {[%clk
0:03:09.8]} 17. c5 {[%clk 0:02:19.7]} 17... Ba7 {[%clk 0:03:06.5]} 18. Nf3
{[%clk 0:02:18.3]} 18... f6 {[%clk 0:03:00.5]} 19. Rfb1 {[%clk 0:01:54.5]} 19...
Ng6 {[%clk 0:02:49.2]} 20. bxa6 {[%clk 0:01:32.2]} 20... bxa6 {[%clk 0:02:43.3]}
21. c6 {[%clk 0:01:30.8]} 21... Qe7 {[%clk 0:02:25.3]} 22. e4 {[%clk 0:01:12.8]}
22... Nxf4 {[%clk 0:02:22.1]} 23. Bd1 {[%clk 0:01:00.3]} 23... e5 {[%clk
0:01:59.7]} 24. dxe5 {[%clk 0:00:57.8]} 24... fxe5 {[%clk 0:01:56.4]} 25. exd5
{[%clk 0:00:52.2]} 25... Qf7 {[%clk 0:01:00.2]} 26. Ng5 {[%clk 0:00:42.6]} 26...
Qg6 {[%clk 0:00:52.4]} 27. Qxg6 {[%clk 0:00:34.3]} 27... Nxg6 {[%clk 0:00:52.3]}
28. Bb3 {[%clk 0:00:24.7]} 28... Nh4 {[%clk 0:00:17.6]} 29. d6+ {[%clk
0:00:22.4]} 29... Kh8 {[%clk 0:00:14.8]} 30. d7 {[%clk 0:00:20.5]} 30... Rxf2
{[%clk 0:00:09.8]} 31. Nf7+ {[%clk 0:00:15.7]} 31... Kg8 {[%clk 0:00:07.7]} 32.
d8=Q# {[%clk 0:00:12.3]} 1-0

[Event "Live Chess"]
[Site "Chess.com"]
[Date "2023.05.21"]
[Round "-"]
[White "TheAuditer"]
[Black "LiamClery2020"]
[Result "0-1"]
[WhiteElo "1385"]
[BlackElo "2005"]
[TimeControl "300"]
[EndTime "8:07:49 PDT"]
[Termination "LiamClery2020 won by resignation"]

1. d4 {[%clk 0:04:56.8]} 1... Nf6 {[%clk 0:04:59.9]} 2. Nf3 {[%clk 0:04:55.7]}
2... d5 {[%clk 0:04:54.2]} 3. Bf4 {[%clk 0:04:53.7]} 3... e6 {[%clk 0:04:51.7]}
4. Nbd2 {[%clk 0:04:50.5]} 4... c5 {[%clk 0:04:43.6]} 5. e3 {[%clk 0:04:48.5]}
5... Nc6 {[%clk 0:04:41.6]} 6. h3 {[%clk 0:04:45.2]} 6... cxd4 {[%clk 0:04:31]}
7. Nxd4 {[%clk 0:04:43.2]} 7... Bd6 {[%clk 0:04:25.8]} 8. Bxd6 {[%clk
0:04:33.4]} 8... Qxd6 {[%clk 0:04:22.9]} 9. Bb5 {[%clk 0:04:27.5]} 9... Bd7
{[%clk 0:04:17.1]} 10. Nxc6 {[%clk 0:04:17.5]} 10... bxc6 {[%clk 0:04:13.6]} 11.
Be2 {[%clk 0:04:09]} 11... Rb8 {[%clk 0:04:11.3]} 12. b3 {[%clk 0:04:03.3]}
12... O-O {[%clk 0:04:09.3]} 13. O-O {[%clk 0:04:01.9]} 13... e5 {[%clk
0:04:07.8]} 14. c4 {[%clk 0:03:54.3]} 14... Rfe8 {[%clk 0:04:02.9]} 15. Nf3
{[%clk 0:03:46.7]} 15... Qc7 {[%clk 0:03:57.1]} 16. Rc1 {[%clk 0:03:40.9]} 16...
Qb7 {[%clk 0:03:50.8]} 17. cxd5 {[%clk 0:03:29.4]} 17... cxd5 {[%clk 0:03:49.5]}
18. Qc2 {[%clk 0:03:18.3]} 18... Rbc8 {[%clk 0:03:40.1]} 19. Qb2 {[%clk
0:03:14.9]} 19... Rxc1 {[%clk 0:03:32.7]} 20. Rxc1 {[%clk 0:03:12.9]} 20... e4
{[%clk 0:03:30.4]} 21. Nd4 {[%clk 0:03:07.6]} 21... Rc8 {[%clk 0:03:28.4]} 22.
Rxc8+ {[%clk 0:03:03.8]} 22... Bxc8 {[%clk 0:03:27.4]} 23. Qc3 {[%clk
0:02:59.8]} 23... Bd7 {[%clk 0:03:18.2]} 24. Qc5 {[%clk 0:02:47.7]} 24... h6
{[%clk 0:03:09.2]} 25. Nb5 {[%clk 0:02:40.6]} 25... a6 {[%clk 0:03:00.2]} 26.
Nd6 {[%clk 0:02:26.4]} 26... Qa8 {[%clk 0:02:58.4]} 27. Qc7 {[%clk 0:02:20.3]}
27... Be6 {[%clk 0:02:54]} 28. Qe7 {[%clk 0:02:12.6]} 28... Qc6 {[%clk
0:02:49.2]} 29. Qd8+ {[%clk 0:02:06.2]} 29... Kh7 {[%clk 0:02:47.7]} 30. Qa5
{[%clk 0:01:59.4]} 30... Qxd6 {[%clk 0:02:46.1]} 0-1

[Event "Live Chess"]
[Site "Chess.com"]
[Date "2023.05.21"]
[Round "-"]
[White "Ed_Knox"]
[Black "mammamiatwo"]
[Result "1-0"]
[WhiteElo "1479"]
[BlackElo "1366"]
[TimeControl "300"]
[EndTime "8:07:51 PDT"]
[Termination "Ed_Knox won by resignation"]

1. d4 {[%clk 0:04:57.6]} 1... e6 {[%clk 0:04:58.9]} 2. Bf4 {[%clk 0:04:57.1]}
2... Qf6 {[%clk 0:04:57.9]} 3. e3 {[%clk 0:04:55.3]} 3... c5 {[%clk 0:04:56.9]}
4. c3 {[%clk 0:04:51.9]} 4... cxd4 {[%clk 0:04:56]} 5. cxd4 {[%clk 0:04:49.8]}
5... Nc6 {[%clk 0:04:52.9]} 6. Nc3 {[%clk 0:04:47.7]} 6... Bb4 {[%clk
0:04:51.5]} 7. Ne2 {[%clk 0:04:45.8]} 7... h6 {[%clk 0:04:49.9]} 8. a3 {[%clk
0:04:44.2]} 8... Ba5 {[%clk 0:04:48.8]} 9. b4 {[%clk 0:04:39.3]} 9... Bb6 {[%clk
0:04:47.2]} 10. Ne4 {[%clk 0:04:30.1]} 10... Qg6 {[%clk 0:04:45.2]} 11. Nd6+
{[%clk 0:04:19.2]} 11... Ke7 {[%clk 0:04:43.2]} 12. Ng3 {[%clk 0:03:49.8]} 12...
Nf6 {[%clk 0:04:40.8]} 13. Bd3 {[%clk 0:03:46.3]} 13... Qg4 {[%clk 0:04:22.9]}
14. f3 {[%clk 0:03:41.6]} 14... Qh4 {[%clk 0:04:17]} 15. Ke2 {[%clk 0:03:18.9]}
15... g5 {[%clk 0:04:04]} 16. Ngf5+ {[%clk 0:03:15.6]} 16... exf5 {[%clk
0:04:02.6]} 17. Nxf5+ {[%clk 0:03:14.3]} 1-0